[Event "Late-Titled-Tuesday-Blitz-June-04-2024"]
[Site "Chess.com"]
[Date "2024.06.04"]
[Round "5"]
[White "Zhigalko_Sergei"]
[Black "ZverevLev"]
[Result "1/2-1/2"]
[WhiteElo "2905"]
[BlackElo "2659"]
[TimeControl "180+1"]
[EndTime "14:56:20 PDT"]
[Termination "Game drawn by repetition"]

1. e4 {[%clk 0:03:00.9]} 1... e5 {[%clk 0:02:58.7]} 2. Nf3 {[%clk 0:03:00.7]}
2... Nc6 {[%clk 0:02:58.8]} 3. Bc4 {[%clk 0:03:00.6]} 3... Bc5 {[%clk
0:02:58.3]} 4. b4 {[%clk 0:03:00.9]} 4... Bxb4 {[%clk 0:02:57.7]} 5. c3 {[%clk
0:03:01]} 5... Ba5 {[%clk 0:02:57.1]} 6. d4 {[%clk 0:03:01.2]} 6... exd4 {[%clk
0:02:49.6]} 7. O-O {[%clk 0:03:01.1]} 7... Nge7 {[%clk 0:02:43.5]} 8. Ng5 {[%clk
0:03:00.7]} 8... Ne5 {[%clk 0:02:42.7]} 9. Nxf7 {[%clk 0:03:00.4]} 9... Nxf7
{[%clk 0:02:41.1]} 10. Bxf7+ {[%clk 0:03:01.3]} 10... Kxf7 {[%clk 0:02:41]} 11.
Qh5+ {[%clk 0:03:02]} 11... g6 {[%clk 0:02:38.3]} 12. Qxa5 {[%clk 0:03:01.3]}
12... d5 {[%clk 0:02:37]} 13. cxd4 {[%clk 0:02:51]} 13... c6 {[%clk 0:02:31.9]}
14. Qa3 {[%clk 0:02:37.4]} 14... dxe4 {[%clk 0:02:28.9]} 15. Nc3 {[%clk
0:02:31.4]} 15... Bf5 {[%clk 0:02:14.4]} 16. Bg5 {[%clk 0:02:24.5]} 16... h6
{[%clk 0:02:08.8]} 17. Bh4 {[%clk 0:02:24.8]} 17... g5 {[%clk 0:02:07.7]} 18.
Bg3 {[%clk 0:02:24.9]} 18... Nd5 {[%clk 0:02:06.9]} 19. Nd1 {[%clk 0:02:03.1]}
19... Re8 {[%clk 0:02:01.3]} 20. Ne3 {[%clk 0:02:01.3]} 20... Nxe3 {[%clk
0:01:48.4]} 21. fxe3 {[%clk 0:02:01.1]} 21... Kg6 {[%clk 0:01:49]} 22. Be5
{[%clk 0:01:21.2]} 22... Rf8 {[%clk 0:01:42.6]} 23. Rf2 {[%clk 0:01:12.9]} 23...
h5 {[%clk 0:01:17.9]} 24. Raf1 {[%clk 0:01:11.7]} 24... Qd7 {[%clk 0:01:15.9]}
25. h3 {[%clk 0:00:49.1]} 25... h4 {[%clk 0:01:14]} 26. Qb4 {[%clk 0:00:17.4]}
26... Rf7 {[%clk 0:01:10.4]} 27. a4 {[%clk 0:00:17.5]} 27... a5 {[%clk
0:00:54.1]} 28. Qb6 {[%clk 0:00:17]} 28... Raf8 {[%clk 0:00:45.5]} 29. Qc5
{[%clk 0:00:07.6]} 29... Qd5 {[%clk 0:00:41.4]} 30. Qa3 {[%clk 0:00:05.1]} 30...
Rc8 {[%clk 0:00:12.5]} 31. Rb2 {[%clk 0:00:03.8]} 31... c5 {[%clk 0:00:04.1]}
32. Rc2 {[%clk 0:00:03.2]} 32... b6 {[%clk 0:00:03.2]} 33. Qc3 {[%clk
0:00:02.9]} 33... Rff8 {[%clk 0:00:02.4]} 34. Qd2 {[%clk 0:00:02.9]} 34... cxd4
{[%clk 0:00:02.3]} 35. Rxc8 {[%clk 0:00:03.8]} 35... Rxc8 {[%clk 0:00:02.2]} 36.
Bxd4 {[%clk 0:00:04.5]} 36... Rg8 {[%clk 0:00:02.4]} 37. Qb2 {[%clk 0:00:03.8]}
37... Rb8 {[%clk 0:00:01.7]} 38. Rd1 {[%clk 0:00:02.8]} 38... b5 {[%clk
0:00:01.8]} 39. Kh1 {[%clk 0:00:02.3]} 39... b4 {[%clk 0:00:02.1]} 40. Qc2
{[%clk 0:00:02.9]} 40... Rb7 {[%clk 0:00:02]} 41. Bb2 {[%clk 0:00:02.1]} 41...
Qe6 {[%clk 0:00:01.5]} 42. Qc5 {[%clk 0:00:02.3]} 42... Rd7 {[%clk 0:00:02.4]}
43. Rd4 {[%clk 0:00:02.3]} 43... Rxd4 {[%clk 0:00:02.5]} 44. Qxd4 {[%clk
0:00:03.2]} 44... Qf7 {[%clk 0:00:02.5]} 45. Qe5 {[%clk 0:00:03.2]} 45... g4
{[%clk 0:00:02.1]} 46. hxg4 {[%clk 0:00:02.7]} 46... Bxg4 {[%clk 0:00:03]} 47.
Kh2 {[%clk 0:00:03.4]} 47... Bf5 {[%clk 0:00:03.9]} 48. Qxa5 {[%clk 0:00:03.4]}
48... h3 {[%clk 0:00:03.2]} 49. gxh3 {[%clk 0:00:03.2]} 49... Qd7 {[%clk
0:00:03.6]} 50. Qe5 {[%clk 0:00:02.3]} 50... Qd2+ {[%clk 0:00:03.6]} 51. Kg1
{[%clk 0:00:01.4]} 51... Qe1+ {[%clk 0:00:03.5]} 52. Kg2 {[%clk 0:00:01.7]}
52... Qe2+ {[%clk 0:00:04.4]} 53. Kh1 {[%clk 0:00:01.5]} 53... Qf1+ {[%clk
0:00:04.6]} 54. Kh2 {[%clk 0:00:01.6]} 54... Qxh3+ {[%clk 0:00:05.3]} 55. Kg1
{[%clk 0:00:02.1]} 55... Qxe3+ {[%clk 0:00:06.2]} 56. Kh2 {[%clk 0:00:02.3]}
56... Qf2+ {[%clk 0:00:05.9]} 57. Kh1 {[%clk 0:00:02.3]} 57... Qf3+ {[%clk
0:00:06.8]} 58. Kh2 {[%clk 0:00:02.4]} 58... Qh3+ {[%clk 0:00:05.3]} 59. Kg1
{[%clk 0:00:02.8]} 59... Qe3+ {[%clk 0:00:06]} 60. Kh2 {[%clk 0:00:03.1]} 60...
Qe2+ {[%clk 0:00:05.8]} 61. Kg1 {[%clk 0:00:02.9]} 61... Qg4+ {[%clk 0:00:04.9]}
62. Kf2 {[%clk 0:00:02.4]} 62... Qf3+ {[%clk 0:00:04.2]} 63. Kg1 {[%clk
0:00:02.5]} 63... Qe3+ {[%clk 0:00:03.7]} 1/2-1/2

[Event "Late-Titled-Tuesday-Blitz-June-04-2024"]
[Site "Chess.com"]
[Date "2024.06.04"]
[Round "5"]
[White "The_Sherman_Variation"]
[Black "DeTimmerman"]
[Result "0-1"]
[WhiteElo "2595"]
[BlackElo "2773"]
[TimeControl "180+1"]
[EndTime "14:56:22 PDT"]
[Termination "DeTimmerman won on time"]

1. e4 {[%clk 0:03:00.9]} 1... e5 {[%clk 0:02:59.9]} 2. d4 {[%clk 0:02:59.6]}
2... exd4 {[%clk 0:03:00.8]} 3. Qxd4 {[%clk 0:02:59.9]} 3... Nc6 {[%clk
0:03:00.8]} 4. Qe3 {[%clk 0:03:00.3]} 4... Nf6 {[%clk 0:03:01]} 5. Bd2 {[%clk
0:03:00.7]} 5... Bb4 {[%clk 0:02:54.2]} 6. a3 {[%clk 0:03:00.2]} 6... Bxd2+
{[%clk 0:02:53.6]} 7. Nxd2 {[%clk 0:03:01.1]} 7... O-O {[%clk 0:02:53.4]} 8.
O-O-O {[%clk 0:02:59.9]} 8... Re8 {[%clk 0:02:53.6]} 9. f4 {[%clk 0:02:59.6]}
9... Nxe4 {[%clk 0:02:43.6]} 10. Nxe4 {[%clk 0:03:00.5]} 10... d5 {[%clk
0:02:44.1]} 11. Nf6+ {[%clk 0:02:59.6]} 11... gxf6 {[%clk 0:02:43.2]} 12. Qg3+
{[%clk 0:02:59.7]} 12... Kh8 {[%clk 0:02:42.3]} 13. Bd3 {[%clk 0:03:00.2]} 13...
Rg8 {[%clk 0:02:30]} 14. Qh4 {[%clk 0:02:59.5]} 14... f5 {[%clk 0:02:30.5]} 15.
Qxd8 {[%clk 0:02:48.1]} 15... Nxd8 {[%clk 0:02:21.9]} 16. g3 {[%clk 0:02:48.4]}
16... c5 {[%clk 0:02:06.5]} 17. Nf3 {[%clk 0:02:44.5]} 17... Kg7 {[%clk
0:01:57.6]} 18. Rhe1 {[%clk 0:02:40]} 18... Be6 {[%clk 0:01:54.1]} 19. c3 {[%clk
0:02:35.6]} 19... Kf6 {[%clk 0:01:50.2]} 20. Bc2 {[%clk 0:02:29.5]} 20... Nc6
{[%clk 0:01:47.3]} 21. Rd2 {[%clk 0:02:24.1]} 21... Rad8 {[%clk 0:01:44.4]} 22.
b4 {[%clk 0:02:13.1]} 22... d4 {[%clk 0:01:36.1]} 23. cxd4 {[%clk 0:02:06.8]}
23... cxb4 {[%clk 0:01:33.3]} 24. axb4 {[%clk 0:01:54.4]} 24... Nxb4 {[%clk
0:01:34.2]} 25. Bb1 {[%clk 0:01:54.7]} 25... Rc8+ {[%clk 0:01:18.1]} 26. Kb2
{[%clk 0:01:54]} 26... a5 {[%clk 0:01:19]} 27. Re5 {[%clk 0:01:42.9]} 27... b6
{[%clk 0:01:00.3]} 28. d5 {[%clk 0:01:42.5]} 28... Bd7 {[%clk 0:00:57.3]} 29.
Nd4 {[%clk 0:01:17.9]} 29... Rge8 {[%clk 0:00:56.1]} 30. Rde2 {[%clk 0:01:18.6]}
30... Red8 {[%clk 0:00:47.5]} 31. Nxf5 {[%clk 0:01:12.5]} 31... Bb5 {[%clk
0:00:43.2]} 32. Rd2 {[%clk 0:01:01.4]} 32... h5 {[%clk 0:00:36.6]} 33. Nd4
{[%clk 0:00:46.4]} 33... Bc4 {[%clk 0:00:34.9]} 34. Rf5+ {[%clk 0:00:45.5]}
34... Kg7 {[%clk 0:00:35.4]} 35. Rg5+ {[%clk 0:00:46]} 35... Kf8 {[%clk
0:00:35.4]} 36. Rxh5 {[%clk 0:00:43.7]} 36... Bxd5 {[%clk 0:00:32.6]} 37. Nf5
{[%clk 0:00:37.6]} 37... f6 {[%clk 0:00:25.2]} 38. Rh6 {[%clk 0:00:24.5]} 38...
Kf7 {[%clk 0:00:24.7]} 39. Rh7+ {[%clk 0:00:20.5]} 39... Kg8 {[%clk 0:00:25.1]}
40. Ne7+ {[%clk 0:00:19.8]} 40... Kf8 {[%clk 0:00:22.5]} 41. Bf5 {[%clk
0:00:19.3]} 41... Ra8 {[%clk 0:00:16.6]} 42. Ng6+ {[%clk 0:00:13.4]} 42... Kg8
{[%clk 0:00:17]} 43. Ne7+ {[%clk 0:00:13.9]} 43... Kf8 {[%clk 0:00:16.9]} 44.
Re2 {[%clk 0:00:13.3]} 44... Bf7 {[%clk 0:00:16]} 45. Rh8+ {[%clk 0:00:11.4]}
45... Kg7 {[%clk 0:00:16.1]} 46. Rh4 {[%clk 0:00:12]} 46... Nd3+ {[%clk
0:00:13.4]} 47. Bxd3 {[%clk 0:00:11]} 47... Rxd3 {[%clk 0:00:13.4]} 48. Nf5+
{[%clk 0:00:10.8]} 48... Kg8 {[%clk 0:00:13.9]} 49. Nh6+ {[%clk 0:00:10.1]}
49... Kg7 {[%clk 0:00:14.4]} 50. Re7 {[%clk 0:00:09.8]} 50... Rf8 {[%clk
0:00:13.7]} 51. Nf5+ {[%clk 0:00:08.4]} 51... Kg6 {[%clk 0:00:13.9]} 52. g4
{[%clk 0:00:08.5]} 52... Rb3+ {[%clk 0:00:09.7]} 53. Kc2 {[%clk 0:00:07.8]}
53... Rc8+ {[%clk 0:00:10]} 54. Kd2 {[%clk 0:00:07.6]} 54... Rb2+ {[%clk
0:00:10.1]} 55. Ke3 {[%clk 0:00:06.8]} 55... Rc3+ {[%clk 0:00:09.9]} 56. Kd4
{[%clk 0:00:07.1]} 56... Rc4+ {[%clk 0:00:10.3]} 57. Kd3 {[%clk 0:00:07.7]}
57... Rb3+ {[%clk 0:00:10.9]} 58. Kd2 {[%clk 0:00:08.3]} 58... Rb2+ {[%clk
0:00:11.5]} 59. Kd1 {[%clk 0:00:07.2]} 59... Rxf4 {[%clk 0:00:11.2]} 60. Rh6+
{[%clk 0:00:02.9]} 60... Kg5 {[%clk 0:00:11.7]} 61. Ke1 {[%clk 0:00:02.4]} 61...
Rxf5 {[%clk 0:00:11.5]} 62. gxf5 {[%clk 0:00:01.6]} 62... Kxh6 {[%clk
0:00:11.6]} 63. Rxf7 {[%clk 0:00:02.5]} 63... Kg5 {[%clk 0:00:12.4]} 64. Kd1
{[%clk 0:00:01.5]} 64... Rxh2 {[%clk 0:00:12.7]} 65. Rb7 {[%clk 0:00:01.2]}
65... Rb2 {[%clk 0:00:13.2]} 66. Kc1 {[%clk 0:00:01.5]} 66... Rb5 {[%clk
0:00:13.7]} 67. Ra7 {[%clk 0:00:01.7]} 67... Kxf5 {[%clk 0:00:14.3]} 0-1

[Event "Late-Titled-Tuesday-Blitz-June-04-2024"]
[Site "Chess.com"]
[Date "2024.06.04"]
[Round "5"]
[White "Chess_Star1234"]
[Black "Oleg_Papayan"]
[Result "0-1"]
[WhiteElo "2418"]
[BlackElo "2574"]
[TimeControl "180+1"]
[EndTime "14:56:22 PDT"]
[Termination "Oleg_Papayan won by checkmate"]

1. d4 {[%clk 0:02:57.2]} 1... d5 {[%clk 0:02:59.9]} 2. c4 {[%clk 0:02:58.1]}
2... dxc4 {[%clk 0:02:59.6]} 3. Nf3 {[%clk 0:02:57.5]} 3... Nf6 {[%clk
0:02:59.7]} 4. e3 {[%clk 0:02:57.4]} 4... e6 {[%clk 0:02:59.9]} 5. Bxc4 {[%clk
0:02:57.8]} 5... a6 {[%clk 0:03:00]} 6. O-O {[%clk 0:02:57.1]} 6... b5 {[%clk
0:03:00.4]} 7. Bb3 {[%clk 0:02:57.8]} 7... Bb7 {[%clk 0:03:00.2]} 8. Nc3 {[%clk
0:02:57.1]} 8... c5 {[%clk 0:02:55.1]} 9. Qe2 {[%clk 0:02:51.6]} 9... cxd4
{[%clk 0:02:47.6]} 10. exd4 {[%clk 0:02:46.1]} 10... Be7 {[%clk 0:02:45.7]} 11.
Rd1 {[%clk 0:02:45.3]} 11... O-O {[%clk 0:02:42.6]} 12. Bg5 {[%clk 0:02:39.6]}
12... Nbd7 {[%clk 0:02:27.2]} 13. d5 {[%clk 0:01:55.8]} 13... Nxd5 {[%clk
0:01:54.3]} 14. Bxd5 {[%clk 0:01:50.1]} 14... Bxd5 {[%clk 0:01:25.7]} 15. Bxe7
{[%clk 0:01:12]} 15... Bxf3 {[%clk 0:01:25.7]} 16. Bxd8 {[%clk 0:00:57.7]} 16...
Bxe2 {[%clk 0:01:26]} 17. Rxd7 {[%clk 0:00:58.1]} 17... Rfxd8 {[%clk 0:01:25.9]}
18. Rxd8+ {[%clk 0:00:58.1]} 18... Rxd8 {[%clk 0:01:26.3]} 19. Nxe2 {[%clk
0:00:58.5]} 19... Rd2 {[%clk 0:01:27.2]} 20. Kf1 {[%clk 0:00:39.2]} 20... Rxb2
{[%clk 0:01:26.8]} 21. f3 {[%clk 0:00:33]} 21... g5 {[%clk 0:01:21.4]} 22. Nc3
{[%clk 0:00:32.5]} 22... f5 {[%clk 0:01:17.9]} 23. Rd1 {[%clk 0:00:14.6]} 23...
Rc2 {[%clk 0:01:14.5]} 24. Rd3 {[%clk 0:00:15]} 24... Kf7 {[%clk 0:01:12.2]} 25.
a3 {[%clk 0:00:15.2]} 25... Kf6 {[%clk 0:01:11.3]} 26. Ne2 {[%clk 0:00:14.5]}
26... Ra2 {[%clk 0:01:05.4]} 27. Nd4 {[%clk 0:00:06.4]} 27... h5 {[%clk
0:00:51.2]} 28. h3 {[%clk 0:00:05.4]} 28... e5 {[%clk 0:00:39.8]} 29. Kg1 {[%clk
0:00:06]} 29... exd4 {[%clk 0:00:39.5]} 30. Rxd4 {[%clk 0:00:05]} 30... Rxa3
{[%clk 0:00:38.8]} 31. Rd6+ {[%clk 0:00:04.1]} 31... Ke5 {[%clk 0:00:39.4]} 32.
Rh6 {[%clk 0:00:04.7]} 32... h4 {[%clk 0:00:40]} 33. Rg6 {[%clk 0:00:05.4]}
33... Kf4 {[%clk 0:00:40.5]} 34. Rd6 {[%clk 0:00:05.5]} 34... Kg3 {[%clk
0:00:35.9]} 35. Rd1 {[%clk 0:00:04.6]} 35... Ra2 {[%clk 0:00:34.5]} 36. f4
{[%clk 0:00:05]} 36... Rxg2+ {[%clk 0:00:27.5]} 37. Kh1 {[%clk 0:00:05.2]} 37...
Rh2+ {[%clk 0:00:27.6]} 38. Kg1 {[%clk 0:00:05.4]} 38... Re2 {[%clk 0:00:15.5]}
39. fxg5 {[%clk 0:00:03.9]} 39... Kxh3 {[%clk 0:00:15.9]} 40. Rd3+ {[%clk
0:00:03.5]} 40... Kg4 {[%clk 0:00:15.4]} 41. g6 {[%clk 0:00:04.2]} 41... Re6
{[%clk 0:00:15.3]} 42. g7 {[%clk 0:00:02]} 42... Rg6 {[%clk 0:00:15.7]} 43. Rd7
{[%clk 0:00:02.9]} 43... Kh5+ {[%clk 0:00:06.9]} 44. Kf2 {[%clk 0:00:03.8]}
44... Kh6 {[%clk 0:00:07.1]} 45. Kf3 {[%clk 0:00:04.2]} 45... Rxg7 {[%clk
0:00:06.6]} 46. Rd6+ {[%clk 0:00:04.8]} 46... Rg6 {[%clk 0:00:07.1]} 47. Rd5
{[%clk 0:00:05.7]} 47... Kg5 {[%clk 0:00:07.6]} 48. Rd8 {[%clk 0:00:05.4]} 48...
h3 {[%clk 0:00:06.8]} 49. Ra8 {[%clk 0:00:06.3]} 49... h2 {[%clk 0:00:06.3]} 50.
Kg2 {[%clk 0:00:07.2]} 50... Kf4+ {[%clk 0:00:06.1]} 51. Kxh2 {[%clk 0:00:07.8]}
51... Kf3 {[%clk 0:00:06.6]} 52. Rf8 {[%clk 0:00:07.2]} 52... f4 {[%clk
0:00:06.8]} 53. Rf5 {[%clk 0:00:05.9]} 53... Ke3 {[%clk 0:00:06.4]} 54. Kh3
{[%clk 0:00:05.2]} 54... f3 {[%clk 0:00:06.1]} 55. Re5+ {[%clk 0:00:06.1]} 55...
Kf2 {[%clk 0:00:06.4]} 56. Rf5 {[%clk 0:00:06.6]} 56... Ke2 {[%clk 0:00:06.7]}
57. Kh2 {[%clk 0:00:07]} 57... f2 {[%clk 0:00:06.4]} 58. Re5+ {[%clk 0:00:07.9]}
58... Kf1 {[%clk 0:00:06.4]} 59. Rf5 {[%clk 0:00:08.8]} 59... Rg4 {[%clk
0:00:03.6]} 60. Rf6 {[%clk 0:00:08.8]} 60... Ke2 {[%clk 0:00:03.6]} 61. Re6+
{[%clk 0:00:08.9]} 61... Kf3 {[%clk 0:00:03.7]} 62. Rf6+ {[%clk 0:00:09.6]}
62... Rf4 {[%clk 0:00:03.8]} 63. Rg6 {[%clk 0:00:10.3]} 63... f1=Q {[%clk
0:00:03.8]} 64. Rg3+ {[%clk 0:00:11.1]} 64... Ke4 {[%clk 0:00:03.9]} 65. Rg4
{[%clk 0:00:08.1]} 65... Qf2+ {[%clk 0:00:03.6]} 66. Rg2 {[%clk 0:00:08.4]}
66... Qxg2+ {[%clk 0:00:03.6]} 67. Kxg2 {[%clk 0:00:09.3]} 67... Rf3 {[%clk
0:00:04.1]} 68. Kh1 {[%clk 0:00:09.5]} 68... b4 {[%clk 0:00:05]} 69. Kg1 {[%clk
0:00:10.2]} 69... b3 {[%clk 0:00:05.9]} 70. Kg2 {[%clk 0:00:10.9]} 70... b2
{[%clk 0:00:06.8]} 71. Kh2 {[%clk 0:00:11.8]} 71... b1=Q {[%clk 0:00:07.2]} 72.
Kg2 {[%clk 0:00:12.7]} 72... Qc2+ {[%clk 0:00:07.4]} 73. Kh1 {[%clk 0:00:13.6]}
73... Rb3 {[%clk 0:00:07.4]} 74. Kg1 {[%clk 0:00:13.7]} 74... Rb1# {[%clk
0:00:08.3]} 0-1

[Event "Late-Titled-Tuesday-Blitz-June-04-2024"]
[Site "Chess.com"]
[Date "2024.06.04"]
[Round "5"]
[White "Darkbluelord"]
[Black "Attacker_2006"]
[Result "1-0"]
[WhiteElo "2131"]
[BlackElo "2492"]
[TimeControl "180+1"]
[EndTime "14:56:54 PDT"]
[Termination "Darkbluelord won by resignation"]

1. e4 {[%clk 0:03:00.9]} 1... e5 {[%clk 0:02:59.9]} 2. Nf3 {[%clk 0:03:00.1]}
2... Nc6 {[%clk 0:02:59.6]} 3. d4 {[%clk 0:02:59.6]} 3... exd4 {[%clk
0:02:58.8]} 4. Bc4 {[%clk 0:02:59.3]} 4... Nf6 {[%clk 0:02:58.4]} 5. e5 {[%clk
0:02:58.8]} 5... d5 {[%clk 0:02:58.9]} 6. Bb5 {[%clk 0:02:59.3]} 6... Ne4 {[%clk
0:02:59.5]} 7. Nxd4 {[%clk 0:02:58.9]} 7... Bd7 {[%clk 0:02:59.4]} 8. Bxc6
{[%clk 0:02:59.1]} 8... bxc6 {[%clk 0:03:00.1]} 9. O-O {[%clk 0:02:58.9]} 9...
Bc5 {[%clk 0:03:00.6]} 10. f3 {[%clk 0:02:58.5]} 10... Ng5 {[%clk 0:02:56.1]}
11. f4 {[%clk 0:02:58.8]} 11... Ne6 {[%clk 0:02:55.8]} 12. Be3 {[%clk
0:02:57.5]} 12... O-O {[%clk 0:02:46.9]} 13. Kh1 {[%clk 0:02:57.2]} 13... Nxd4
{[%clk 0:02:41.9]} 14. Bxd4 {[%clk 0:02:56.9]} 14... Bxd4 {[%clk 0:02:40.4]} 15.
Qxd4 {[%clk 0:02:56.4]} 15... Bf5 {[%clk 0:02:41.1]} 16. Qc5 {[%clk 0:02:35]}
16... Qd7 {[%clk 0:02:24]} 17. Nd2 {[%clk 0:02:34]} 17... Rab8 {[%clk
0:02:20.9]} 18. b3 {[%clk 0:02:34.2]} 18... Rb5 {[%clk 0:02:16.8]} 19. Qxa7
{[%clk 0:02:34]} 19... Bxc2 {[%clk 0:02:15.3]} 20. Rac1 {[%clk 0:02:29.8]} 20...
Bf5 {[%clk 0:02:12.5]} 21. Nf3 {[%clk 0:02:28.1]} 21... Be4 {[%clk 0:01:47]} 22.
Qf2 {[%clk 0:02:16.7]} 22... Bxf3 {[%clk 0:01:45.2]} 23. Qxf3 {[%clk 0:02:16]}
23... Ra8 {[%clk 0:01:43.5]} 24. Rf2 {[%clk 0:02:14.8]} 24... Rba5 {[%clk
0:01:37.4]} 25. a4 {[%clk 0:02:14.1]} 25... Rb8 {[%clk 0:01:26.7]} 26. f5 {[%clk
0:02:13.4]} 26... d4 {[%clk 0:01:18.4]} 27. f6 {[%clk 0:02:12.3]} 27... g6
{[%clk 0:01:14.3]} 28. Qf4 {[%clk 0:02:02.9]} 28... Qd8 {[%clk 0:00:58.6]} 29.
e6 {[%clk 0:01:23.6]} 29... Rf5 {[%clk 0:00:55.3]} 30. Qh6 {[%clk 0:01:13.5]}
30... Rxf6 {[%clk 0:00:55.3]} 31. exf7+ {[%clk 0:01:11.3]} 31... Kxf7 {[%clk
0:00:54.6]} 32. Qxh7+ {[%clk 0:01:10.9]} 32... Ke6 {[%clk 0:00:50.3]} 33. Re1+
{[%clk 0:01:09.5]} 33... Kd6 {[%clk 0:00:44.3]} 34. Rd2 {[%clk 0:01:06.8]} 34...
c5 {[%clk 0:00:37.3]} 35. Qh3 {[%clk 0:01:05.8]} 35... Qf8 {[%clk 0:00:32.2]}
36. Qg3+ {[%clk 0:01:05.7]} 36... Kc6 {[%clk 0:00:30.6]} 37. h3 {[%clk
0:01:01.8]} 37... Rd8 {[%clk 0:00:23.6]} 38. Rde2 {[%clk 0:01:00.9]} 38... Rf1+
{[%clk 0:00:22.6]} 39. Kh2 {[%clk 0:01:01]} 39... Rxe1 {[%clk 0:00:20.1]} 40.
Rxe1 {[%clk 0:00:57.7]} 40... d3 {[%clk 0:00:20.2]} 41. Re6+ {[%clk 0:00:57.5]}
41... Rd6 {[%clk 0:00:20.3]} 42. Re1 {[%clk 0:00:26.2]} 42... d2 {[%clk
0:00:20.1]} 43. Rd1 {[%clk 0:00:26.6]} 43... Qf5 {[%clk 0:00:19.1]} 44. Qe3
{[%clk 0:00:21.3]} 44... Qd5 {[%clk 0:00:17.5]} 45. Qe8+ {[%clk 0:00:20.7]}
45... Kb6 {[%clk 0:00:17.5]} 46. Qb8+ {[%clk 0:00:20.4]} 46... Qb7 {[%clk
0:00:15.8]} 47. Qe8 {[%clk 0:00:20.5]} 47... c6 {[%clk 0:00:14.6]} 48. Qe2
{[%clk 0:00:19.9]} 48... Qd7 {[%clk 0:00:14.2]} 49. Qc4 {[%clk 0:00:19.4]} 49...
Rd4 {[%clk 0:00:13.8]} 50. a5+ {[%clk 0:00:19.6]} 50... Kb7 {[%clk 0:00:13.4]}
51. Qxc5 {[%clk 0:00:19.7]} 51... Qc7+ {[%clk 0:00:10.4]} 52. Kh1 {[%clk
0:00:16.6]} 52... Rd5 {[%clk 0:00:10.6]} 53. Qb4+ {[%clk 0:00:14.8]} 53... Kc8
{[%clk 0:00:11.1]} 54. Qf8+ {[%clk 0:00:14]} 54... Rd8 {[%clk 0:00:11.3]} 55.
Qc5 {[%clk 0:00:13]} 55... Qf4 {[%clk 0:00:09.9]} 56. Qxc6+ {[%clk 0:00:12.2]}
56... Kb8 {[%clk 0:00:10.4]} 57. Qb6+ {[%clk 0:00:11.8]} 57... Kc8 {[%clk
0:00:10.3]} 58. Qc6+ {[%clk 0:00:12.1]} 58... Kb8 {[%clk 0:00:10.4]} 59. a6
{[%clk 0:00:10.1]} 59... Qc7 {[%clk 0:00:09.6]} 60. Qxc7+ {[%clk 0:00:06.3]}
60... Kxc7 {[%clk 0:00:10]} 61. Kg1 {[%clk 0:00:07.2]} 61... Kb6 {[%clk
0:00:10.6]} 62. Kf2 {[%clk 0:00:07.3]} 62... Kxa6 {[%clk 0:00:11.2]} 63. Ke2
{[%clk 0:00:08.2]} 63... Kb5 {[%clk 0:00:11.9]} 64. Rxd2 {[%clk 0:00:08.6]}
64... Re8+ {[%clk 0:00:11.9]} 65. Kf3 {[%clk 0:00:07.9]} 65... Kb4 {[%clk
0:00:12.4]} 66. Rd3 {[%clk 0:00:07.6]} 66... Rf8+ {[%clk 0:00:11.4]} 67. Kg4
{[%clk 0:00:07.2]} 67... Rf2 {[%clk 0:00:11.9]} 68. g3 {[%clk 0:00:07.1]} 68...
Rf1 {[%clk 0:00:10.2]} 69. Rf3 {[%clk 0:00:07.2]} 69... Rd1 {[%clk 0:00:08.4]}
70. Kg5 {[%clk 0:00:07.1]} 70... Rd6 {[%clk 0:00:08.4]} 71. h4 {[%clk
0:00:05.8]} 71... Rc6 {[%clk 0:00:08.4]} 72. g4 {[%clk 0:00:04.9]} 72... Kb5
{[%clk 0:00:06.8]} 73. Rf6 {[%clk 0:00:04.7]} 73... Rc5+ {[%clk 0:00:07]} 74.
Kxg6 {[%clk 0:00:04.7]} 74... Kb4 {[%clk 0:00:07.9]} 75. Rb6+ {[%clk 0:00:02]}
75... Kc3 {[%clk 0:00:08.2]} 76. h5 {[%clk 0:00:02.1]} 76... Rc4 {[%clk
0:00:08.2]} 77. g5 {[%clk 0:00:01.8]} 77... Rg4 {[%clk 0:00:07.4]} 78. h6 {[%clk
0:00:02.7]} 78... Rh4 {[%clk 0:00:07.1]} 79. h7 {[%clk 0:00:03.6]} 79... Kd4
{[%clk 0:00:06.5]} 80. Rc6 {[%clk 0:00:04.5]} 80... Kd5 {[%clk 0:00:06.3]} 81.
Rc8 {[%clk 0:00:05.4]} 1-0